[Event "Prague Festival Masters 2024"]
[Site "Prague"]
[Date "2024.03.02"]
[Round "5.1"]
[White "Keymer, Vincent"]
[Black "Nguyen, Thai Dai Van"]
[Result "1/2-1/2"]
[ECO "D26"]
[WhiteElo "2743"]
[BlackElo "2632"]
[Annotator "TA"]
[PlyCount "96"]
[EventDate "2024.02.22"]
[EventType "tourn"]
[EventCountry "CZE"]
[SourceTitle "playchess.com"]
[Source "ChessBase"]
[SourceQuality "1"]
[TimeControl "40/5400+30:1800+30"]

{[%evp 11,96,10,6,0,4,0,0,-6,0,0,0,0,0,0,0,0,24,0,0,0,0,0,12,6,27,23,14,20,10,15,20,13,15,20,16,17,12,4,40,44,47,46,49,37,41,41,41,39,54,51,54,53,61,59,69,68,69,69,74,69,68,68,81,81,83,82,83,82,97,59,82,82,63,50,67,8,8,8,8,0,0,0,0,0,0,0,8]} 1. d4 {[%emt 0:00:04]} Nf6 {[%emt 0:00:20]} 2. c4 {[%emt 0:00:04]} e6 {[%emt 0:00:06]} 3. Nf3 {[%emt 0:00:02]} d5 {[%emt 0:00:07]} 4. Nc3 {[%emt 0:00:03]} c5 {[%emt 0:00:09]} 5. e3 {[%emt 0:00:24]} dxc4 {[%emt 0:02:50]} 6. Bxc4 {[%emt 0:00:06]} a6 {[%emt 0:00:05]} 7. e4 {[%emt 0:04:22]} b5 {[%emt 0:01:53] [#] Threatens to win with ...cxd4.} 8. Bb3 {[%emt 0:00:09]} cxd4 {[%emt 0:00:29]} 9. Nxd4 {[%emt 0:00:04]} Nbd7 {[%emt 0:00:23]} 10. Be3 {[%emt 0:00:52][%cal Ob3e6]} Bb7 {[%emt 0:02:19]} 11. O-O {[%emt 0:01:09][%cal Ob3e6]} Bb4 {[%emt 0:00:06][%cal Ob4c3]} 12. a4 {[%emt 0:00:47]} O-O {[%emt 0:00:22]} 13. axb5 {[%emt 0:03:47]} axb5 {[%emt 0:00:38]} 14. Rxa8 {[%emt 0:02:12]} Qxa8 {[%emt 0:34:04]} 15. f3 {[%emt 0:10:01]} Qb8 {[%emt 0:04:47]} 16. Kh1 {[%emt 0:26:52]} (16. Ndxb5 Ba6 17. Bc4 (17. Ba7 $2 Qb7 $19) 17... Bxc3 $19) (16. Nxe6 fxe6 17. Bxe6+ Kh8 18. Bxd7 Rd8 $17) 16... Bc5 {[%emt 0:08:10]} 17. Qe2 {[%emt 0:11:42]} (17. Ncxb5 $2 {too greedy.} Ba6 18. Qd2 Bxb5 $19) 17... b4 {[%emt 0:08:01]} 18. Na4 {[%emt 0:00:07][%cal Od4e6]} Bd6 {[%emt 0:00:18]} 19. Qb5 {[%emt 0:06:03][%cal Od4e6]} Bxh2 {[%emt 0:03:59] [#]} 20. Nxe6 {[%emt 0:05:46]} fxe6 {[%emt 0:05:45]} 21. Bxe6+ {[%emt 0:00:03]} Kh8 $1 {[%emt 0:00:06][%cal Oh2f4] ...Bf4! is the strong threat.} 22. Bxd7 {[%emt 0:00:05]} Nxd7 {[%emt 0:14:09]} 23. Qxd7 {[%emt 0:00:09] Strongly threatening Bd4.} Bxe4 {[%emt 0:00:06][%cal Bb7e4,Be4f5,Bf5d7][%mdl 32]} 24. Ba7 {[%emt 0:08:09][%cal Be3a7,Ba7b8,Bb8h2,Bh2g1][%mdl 32]} Bf5 {[%emt 0:06:00] A strong pair of Bishops.} ({But not} 24... Qg3 $2 25. Qe7 Qd6 26. Bc5 (26. Qxe4 Qh6 $15) 26... Qxe7 27. Bxe7 $18) (24... Qf4 {keeps more tension.} 25. Bd4 Rg8 26. fxe4 Qxf1+ 27. Kxh2 Qf4+) 25. Bxb8 {[%emt 0:04:55]} Bxd7 {[%emt 0:00:01]} 26. Bxh2 {[%emt 0:03:42]} Bxa4 $14 {[%emt 0:00:02][%mdl 4096] Endgame. KRB-KRB} 27. Rc1 {[%emt 0:00:09]} b3 {[%emt 0:03:37]} 28. Rc7 {[%emt 0:02:09]} Kg8 {[%emt 0:01:10]} 29. Rb7 {[%emt 0:00:24]} Rf7 {[%emt 0:02:30]} 30. Rb4 {[%emt 0:00:49]} Ra7 {[%emt 0:01:27]} 31. Bg1 {[%emt 0:00:15]} Ra8 {[%emt 0:01:28]} 32. Bd4 {[%emt 0:00:25]} Bc6 {[%emt 0:00:30]} 33. Rxb3 {[%emt 0:00:11]} Rd8 {[%emt 0:00:15]} 34. Bc3 {[%emt 0:00:31]} Rd7 {[%emt 0:00:39]} 35. Rb6 {[%emt 0:00:19]} Bd5 {[%emt 0:00:05]} 36. Kh2 {[%emt 0:00:43]} Rb7 {[%emt 0:00:24]} 37. Rd6 {[%emt 0:00:38]} Bb3 {[%emt 0:00:08]} 38. g4 {[%emt 0:01:18]} Kf7 {[%emt 0:00:36]} 39. Kg3 {[%emt 0:00:26] White is more active.} Be6 {[%emt 0:01:11]} 40. Rd8 {[%emt 0:02:26]} Rd7 {[%emt 0:00:42]} 41. Rh8 {[%emt 0:37:02]} h6 {[%emt 0:30:23]} 42. Be5 {[%emt 0:00:00]} Rd5 {[%emt 0:00:00]} 43. f4 {[%emt 0:00:00]} (43. Kf4 $14) 43... Rd3+ $11 {[%emt 0:00:00] The position is equal.} 44. Kh4 {[%emt 0:00:00] And now Rh7 would win.} Rd5 {[%emt 0:00:00]} 45. Kg3 {[%emt 0:00:00]} Rd3+ $1 {[%emt 0:00:00]} 46. Kf2 {[%emt 0:00:00] aiming for Rh7.} Bxg4 {[%emt 0:00:00]} 47. Rh7 {[%emt 0:00:00]} Rf3+ {[%emt 0:00:00]} 48. Kg2 {[%emt 0:00:00]} Rxf4 {[%emt 0:00:00] Weighted Error Value: White=0.06 (flawless) /Black=0.05 (flawless) .  Mistake:       	White=1     	---        Inaccurate:     	White=1     	Black=2      OK:         	White=24    	Black=20     Best:        	White=2     	Black=3      Strong:       	---       	Black=2} 1/2-1/2

[Event "Prague Festival Masters 2024"]
[Site "Prague"]
[Date "2024.03.02"]
[Round "5.2"]
[White "Praggnanandhaa R"]
[Black "Vidit, Santosh Gujrathi"]
[Result "1-0"]
[ECO "A29"]
[WhiteElo "2743"]
[BlackElo "2742"]
[Annotator "TA"]
[PlyCount "103"]
[EventDate "2024.02.22"]
[EventType "tourn"]
[EventCountry "CZE"]
[SourceTitle "playchess.com"]
[Source "ChessBase"]
[SourceQuality "1"]
[TimeControl "40/5400+30:1800+30"]

{[%evp 10,103,2,0,25,-1,0,-7,1,4,0,8,8,4,6,13,23,24,22,0,9,14,16,6,5,0,0,7,23,18,26,23,33,26,36,19,11,6,9,8,27,28,30,28,31,35,28,0,38,58,49,27,33,30,21,29,38,36,45,10,66,36,41,28,8,3,8,0,0,0,0,0,0,0,50,51,51,59,60,75,568,588,588,588,29980,29981,29981,29982,29982,29983,29995,29996,29996,29997,29997,29998]} 1. c4 {[%emt 0:00:54]} e5 {[%emt 0:01:09]} 2. Nc3 {[%emt 0:00:11]} Nf6 {[%emt 0:01:14]} 3. Nf3 {[%emt 0:00:07]} Nc6 {[%emt 0:00:18]} 4. g3 {[%emt 0:00:10]} d5 {[%emt 0:04:20]} 5. cxd5 {[%emt 0:00:13]} Nxd5 {[%emt 0:00:08]} 6. Bg2 {[%emt 0:00:04][%cal Of3e5]} Bc5 {[%emt 0:01:02]} 7. d3 {[%emt 0:00:28][%cal Of3e5]} O-O {[%emt 0:03:10]} 8. Bd2 {[%emt 0:00:28][%cal Of3e5]} Nf6 {[%emt 0:13:59] The position is equal.} 9. a3 {[%emt 0:00:24]} h6 {[%emt 0:04:25]} 10. b4 {[%emt 0:00:24]} Bd6 {[%emt 0:00:09]} 11. O-O {[%emt 0:03:14]} a6 {[%emt 0:02:04]} 12. Bc1 {[%emt 0:06:39]} Bf5 {[%emt 0:04:50]} 13. Bb2 {[%emt 0:01:26]} Qd7 {[%emt 0:00:29]} 14. Na4 {[%emt 0:07:41]} Bh3 {[%emt 0:14:14]} 15. Rc1 {[%emt 0:09:16]} Rad8 {[%emt 0:00:59]} 16. Qc2 {[%emt 0:09:20]} Rfe8 {[%emt 0:01:47]} 17. Rfd1 {[%emt 0:03:16]} Bxg2 {[%emt 0:16:06]} 18. Kxg2 {[%emt 0:00:43]} Qe6 {[%emt 0:00:07]} 19. e4 {[%emt 0:02:19]} Rd7 {[%emt 0:04:37]} 20. Qc4 {[%emt 0:07:19]} Qe7 {[%emt 0:01:52]} 21. Qb3 {[%emt 0:04:46]} Red8 {[%emt 0:04:58]} 22. Re1 {[%emt 0:00:45]} Qe8 $1 {[%emt 0:04:55]} 23. h3 {[%emt 0:06:33]} Nh7 {[%emt 0:02:33]} 24. Nc3 {[%emt 0:11:13][%cal Ba4c3,Bc3d5,Bd5b6][%mdl 32]} Ng5 {[%emt 0:01:49]} 25. Nxg5 {[%emt 0:00:12]} Nd4 {[%emt 0:01:11] Against Nf3} 26. Qd1 {[%emt 0:02:29]} hxg5 27. Nd5 {[%emt 0:02:19]} Ne6 {[%emt 0:02:36]} 28. Qg4 {[%emt 0:02:28]} Bf8 {[%emt 0:03:13]} 29. h4 {[%emt 0:01:23]} c6 {[%emt 0:00:00]} 30. Nb6 {[%emt 0:01:10]} (30. hxg5 $5 cxd5 31. Rh1 Nxg5 32. Qxg5 $14) 30... Rxd3 {[%emt 0:00:00]} 31. hxg5 {[%emt 0:00:05][%cal Oe1h1] Strongly threatening Rh1!} Be7 {[%emt 0:02:37]} 32. g6 {[%emt 0:02:57]} Bg5 {[%emt 0:00:40]} 33. gxf7+ {[%emt 0:04:56]} Qxf7 {[%emt 0:00:02] Hoping for ...Rd2.} 34. Rcd1 {[%emt 0:01:44] next Rxd3 is good for White.} Bd2 {[%emt 0:02:11]} (34... Rf8 $11 35. Qf5 (35. Rxd3 $2 {too greedy.} Qxf2+ 36. Kh3 Rf6 $19) 35... Qxf5 36. exf5 Rxd1 37. Rxd1 Rxf5) 35. Re2 {[%emt 0:03:31][%cal Ob6c4] Threatens to win with Nc4!} Bc3 {[%emt 0:01:35]} 36. Rxd3 {[%emt 0:00:38]} Rxd3 {[%emt 0:00:02]} 37. Nc4 {[%emt 0:00:20]} Qf6 {[%emt 0:01:30]} 38. Bxc3 {[%emt 0:05:26]} Rxc3 {[%emt 0:00:01]} 39. Ne3 {[%emt 0:00:11]} Rxa3 {[%emt 0:00:55]} 40. Rd2 {[%emt 0:01:22] Against Rd3} Nd4 {[%emt 0:00:59]} 41. Nf5 {[%emt 0:04:23]} a5 {[%emt 0:09:57]} ({Better is} 41... Ra1 $11) 42. Nxd4 $1 $14 {[%emt 0:08:32]} exd4 {[%emt 0:00:10][%mdl 4096] Endgame. [#] KQR-KQR} 43. e5 $1 {[%emt 0:00:17]} Qxe5 {[%emt 0:08:08]} 44. Rxd4 {[%emt 0:01:00] Re4 is the strong threat.} axb4 $2 {[%emt 0:01:58][%mdl 8192] [#] This costs Black the game.} (44... Rb3 $16) 45. Re4 $1 $18 {[%emt 0:06:02]} Qd5 {[%emt 0:05:35] [#] aiming for ...Ra8.} 46. Kh2 $1 {[%emt 0:01:09] Qc8+ would kill now.} Ra2 {[%emt 0:08:21]} 47. Qc8+ {[%emt 0:01:25] White mates.} Kh7 {[%emt 0:00:30]} 48. Rh4+ {[%emt 0:00:20]} Kg6 {[%emt 0:00:02]} 49. Qe8+ {[%emt 0:00:13]} Kg5 {[%emt 0:00:59]} 50. Qe7+ {[%emt 0:00:36]} (50. Rxb4 $2 {gets mated.} Rxf2+ 51. Kh3 Qh1#) 50... Kf5 {[%emt 0:00:27]} 51. Rf4+ {[%emt 0:00:12]} (51. Qxb7 $2 {is a self mate.} Rxf2+ 52. Kh3 Qh1#) 51... Kg6 {[%emt 0:00:01]} 52. Rg4+ {[%emt 0:00:05] Weighted Error Value: White=0.05 (flawless) /Black=0.39.  Loses game:     	---       	Black=1      Mistake:       	---       	Black=2      Inaccurate:     	White=4     	Black=2      OK:         	White=23    	Black=16     Best:        	White=1     	Black=2      Strong:       	White=3     	Black=1      Brilliant:      	White=1     	---} 1-0

[Event "Prague Festival Masters 2024"]
[Site "Prague"]
[Date "2024.03.02"]
[Round "5.3"]
[White "Bartel, Mateusz"]
[Black "Abdusattorov, Nodirbek"]
[Result "0-1"]
[ECO "B72"]
[WhiteElo "2657"]
[BlackElo "2727"]
[Annotator "TA"]
[PlyCount "56"]
[EventDate "2024.02.22"]
[EventType "tourn"]
[EventCountry "CZE"]
[SourceTitle "playchess.com"]
[Source "ChessBase"]
[SourceQuality "1"]
[TimeControl "40/5400+30:1800+30"]

{[%evp 19,56,1,28,5,22,0,0,0,-7,0,0,-8,-17,-41,-46,-39,-29,-71,-73,-87,-88,-137,-138,-177,-186,-218,-209,-217,-222,-225,-189,-345,-351,-335,-327,-422,-398,-493,-503]} 1. e4 {[%emt 0:00:05]} c5 {[%emt 0:00:16]} 2. Nf3 {[%emt 0:00:10]} Nc6 {[%emt 0:00:07]} 3. Nc3 {[%emt 0:00:04]} g6 {[%emt 0:00:11]} 4. d4 {[%emt 0:00:07]} cxd4 {[%emt 0:00:10]} 5. Nxd4 {[%emt 0:00:04]} Bg7 {[%emt 0:00:28]} 6. Be3 {[%emt 0:00:09]} Nf6 {[%emt 0:00:06]} 7. Bc4 {[%emt 0:00:14]} O-O {[%emt 0:00:18]} 8. Bb3 {[%emt 0:00:20]} d6 {[%emt 0:05:21]} 9. h3 {[%emt 0:00:24]} Bd7 {[%emt 0:03:33]} 10. O-O {[%emt 0:00:12]} Na5 {[%emt 0:02:42][%cal Ob7b5]} 11. Qd3 {[%emt 0:02:38]} a6 {[%emt 0:05:49]} 12. Rfe1 {[%emt 0:05:02]} Rc8 {[%emt 0:06:55]} 13. Rad1 {[%emt 0:00:12] The position is equal.} b5 {[%emt 0:10:14]} 14. Bg5 {[%emt 0:05:23]} Re8 {[%emt 0:02:52]} 15. Nd5 {[%emt 0:08:15]} Nxd5 {[%emt 0:04:32]} 16. exd5 {[%emt 0:00:48]} Nc4 {[%emt 0:02:25]} 17. Bxc4 {[%emt 0:17:17]} bxc4 {[%emt 0:00:48]} 18. Qe3 {[%emt 0:01:02][%cal Rg5e7]} Qa5 {[%emt 0:04:42][%csl LRa2,LRd5]} 19. Qe4 {[%emt 0:11:00]} Qxa2 {[%emt 0:09:37]} 20. Qh4 {[%emt 0:02:18]} (20. Rb1 $142) 20... Qxb2 $17 {[%emt 0:03:25]} 21. Bxe7 {[%emt 0:01:01]} h6 {[%emt 0:02:17]} 22. Qf4 {[%emt 0:05:07] [#]} Ba4 $1 {[%emt 0:00:52]} 23. Nc6 {[%emt 0:08:29]} Bxc6 {[%emt 0:08:59]} (23... Bxc2 24. Rc1 Ba4 25. Bxd6 $11) 24. dxc6 {[%emt 0:00:04]} Rxc6 {[%emt 0:01:31]} 25. Bxd6 $2 {[%emt 0:02:37]} (25. Re2 {was necessary.}) 25... Rxe1+ $19 {[%emt 0:00:18]} 26. Rxe1 {[%emt 0:00:03] [#] Hoping for Re8+.} Qxc2 {[%emt 0:02:45]} 27. g4 {[%emt 0:09:44]} Rc8 {[%emt 0:00:11] Prevents Re8+.} 28. Qf3 {[%emt 0:00:04]} Qb3 {[%emt 0:01:35] Weighted Error Value: White=0.39/Black=0.02 (flawless) .  Mistake:       	White=2     	---        Inaccurate:     	White=1     	---        OK:         	White=1     	Black=8      Best:        	---       	Black=5      Strong:       	---       	Black=1} 0-1

[Event "Prague Festival Masters 2024"]
[Site "Prague"]
[Date "2024.03.02"]
[Round "5.4"]
[White "Gukesh D"]
[Black "Navara, David"]
[Result "0-1"]
[ECO "A25"]
[WhiteElo "2725"]
[BlackElo "2679"]
[Annotator "TA"]
[PlyCount "122"]
[EventDate "2024.02.22"]
[EventType "tourn"]
[EventCountry "CZE"]
[SourceTitle "playchess.com"]
[Source "ChessBase"]
[SourceQuality "1"]
[TimeControl "40/5400+30:1800+30"]

{[%evp 36,122,64,37,70,76,75,76,117,114,127,119,123,118,125,100,108,107,206,214,248,249,245,154,180,172,165,174,166,103,107,20,20,20,20,0,0,0,0,0,0,0,0,0,0,0,0,0,0,0,0,0,5,-23,-8,-8,-8,-8,-6,-1,-8,-6699,-5177,-29951,-29956,-29958,-29958,-29959,-29959,-29960,-29961,-29959,-29959,-29965,-29968,-29968,-29969,-29969,-29970,-29970,-29972,-29974,-29971,-29976,-29977,-29979,-29980,-29982,-29975]} 1. c4 {[%emt 0:00:07]} Nf6 {[%emt 0:00:09]} 2. Nc3 {[%emt 0:00:27]} e5 {[%emt 0:00:08]} 3. e3 {[%emt 0:00:30]} Nc6 {[%emt 0:02:22]} 4. Qb3 {[%emt 0:00:37]} b6 {[%emt 0:02:17]} 5. Nf3 $146 {[%emt 0:09:27]} ({Predecessor:} 5. Bd3 Nb4 6. Be2 Bb7 7. Bf3 Nd3+ 8. Kf1 e4 9. Bxe4 Nxe4 10. Nxe4 Bxe4 11. f3 {0-1 Nilsson,B (810)-Werhan,M (1192) IECC CL7-2020.03 email}) 5... Bb7 {[%emt 0:03:35]} 6. a3 {[%emt 0:14:58] A25: English Opening vs King's Indian with ...Nc6 but without early d3.} e4 {[%emt 0:11:14]} 7. Ng5 {[%emt 0:01:05]} Qe7 {[%emt 0:01:26]} 8. Qc2 {[%emt 0:03:34]} O-O-O {[%emt 0:00:37]} 9. Ngxe4 {[%emt 0:14:48]} Nd4 {[%emt 0:05:33]} 10. Qd3 {[%emt 0:02:14]} Bxe4 {[%emt 0:06:57]} 11. Nxe4 {[%emt 0:00:22]} Qxe4 {[%emt 0:00:07]} 12. Qxe4 {[%emt 0:04:59]} Nxe4 {[%emt 0:00:28]} 13. exd4 {[%emt 0:00:05]} Re8 {[%emt 0:06:14]} 14. Be2 {[%emt 0:00:07]} g6 {[%emt 0:12:19]} 15. d3 {[%emt 0:09:00]} Nd6 {[%emt 0:00:33]} 16. d5 {[%emt 0:00:53]} Nf5 {[%emt 0:06:42]} 17. Kf1 {[%emt 0:03:08]} Bg7 {[%emt 0:08:26]} 18. Rb1 {[%emt 0:01:23]} h5 {[%emt 0:03:51]} 19. Bd2 {[%emt 0:02:46]} Re7 {[%emt 0:05:08]} 20. h4 {[%emt 0:04:36]} Rhe8 {[%emt 0:02:12]} 21. Bd1 {[%emt 0:00:40]} c5 {[%emt 0:04:43]} 22. g4 {[%emt 0:09:45]} hxg4 {[%emt 0:01:19]} 23. Bxg4 {[%emt 0:00:02]} Bh6 {[%emt 0:00:49]} 24. Bc3 {[%emt 0:00:36]} Nd4 {[%emt 0:01:11]} 25. b4 {[%emt 0:06:40]} f5 {[%emt 0:04:21]} 26. Bd1 {[%emt 0:00:07]} Ne2 {[%emt 0:00:58]} (26... Bf4 $16) 27. Bxe2 $18 {[%emt 0:02:16]} Rxe2 {[%emt 0:00:15]} 28. bxc5 {[%emt 0:00:09]} bxc5 {[%emt 0:00:11]} 29. Rb5 {[%emt 0:02:31]} Bf8 {[%emt 0:01:26] [#]} 30. Rb2 $1 {[%emt 0:02:32]} Rxb2 {[%emt 0:00:47]} 31. Bxb2 {[%emt 0:00:01]} Kc7 {[%emt 0:00:49]} 32. Rg1 {[%emt 0:02:26]} ({White should try} 32. Bc3 $18 {aiming for Rg1.} Rb8 33. Ke2) 32... Rb8 $16 {[%emt 0:01:09]} 33. Bc3 {[%emt 0:01:18]} (33. Bf6 $16 Rb1+ 34. Kg2 Rxg1+ 35. Kxg1) 33... Rb1+ $11 {[%emt 0:01:03]} 34. Be1 {[%emt 0:01:40]} Bg7 $1 {[%emt 0:02:20]} 35. Kg2 {[%emt 0:01:17]} (35. Rxg6 $2 Bc3 36. h5 (36. d6+ $2 Kc6 $19) 36... Rxe1+ 37. Kg2 Bd4 $19) (35. Ke2 $5 Bc3 $8 36. f4 $11) 35... Kb7 {[%emt 0:03:34]} 36. Bd2 {[%emt 0:00:45]} Rxg1+ $1 {[%emt 0:00:17]} 37. Kxg1 {[%emt 0:00:04]} Bb2 $1 {[%emt 0:00:18]} 38. a4 {[%emt 0:00:46]} Bf6 {[%emt 0:00:06]} 39. Be3 {[%emt 0:00:18]} Kb6 {[%emt 0:01:38]} 40. Kg2 {[%emt 0:00:55]} Bxh4 {[%emt 0:02:12]} 41. d4 {[%emt 0:01:12]} cxd4 $1 {[%emt 0:02:42]} 42. Bxd4+ {[%emt 0:03:33]} Ka5 {[%emt 0:09:07]} 43. c5 $1 {[%emt 0:01:29]} Be7 {[%emt 0:00:42]} (43... Kxa4 44. c6 Bd8 45. Be5 $18 (45. Bxa7 dxc6 46. dxc6 Kb5 $15) (45. cxd7 Kb5 $15)) 44. d6 {[%emt 0:11:10]} Bd8 {[%emt 0:00:28]} 45. c6 $1 {[%emt 0:01:10]} dxc6 {[%emt 0:00:11]} 46. Bxa7 {[%emt 0:00:02]} Kxa4 {[%emt 0:00:16]} 47. Bb8 $1 {[%emt 0:00:07]} Bb6 {[%emt 0:01:49]} 48. Kf3 $2 {[%emt 0:04:12][%mdl 8192] [#]} (48. Kg3 $11) 48... g5 $1 $19 {[%emt 0:02:22]} 49. d7 {[%emt 0:00:13]} Kb5 {[%emt 0:02:32]} 50. Be5 {[%emt 0:08:07]} Bd8 {[%emt 0:00:16]} 51. Ke3 {[%emt 0:00:03]} Kc5 {[%emt 0:01:27]} 52. Kd3 {[%emt 0:00:49]} Kd5 {[%emt 0:00:15]} 53. Bc3 {[%emt 0:00:31]} Ke6 {[%emt 0:03:23]} 54. f3 {[%emt 0:00:04]} Kxd7 {[%emt 0:00:07]} 55. Bd2 {[%emt 0:00:03]} Ke6 {[%emt 0:00:37]} 56. Kc4 {[%emt 0:00:12]} Be7 {[%emt 0:02:56]} 57. Kd4 {[%emt 0:00:01]} c5+ {[%emt 0:00:25]} 58. Kc4 {[%emt 0:01:01]} Ke5 {[%emt 0:00:06]} 59. Be3 {[%emt 0:00:42]} g4 {[%emt 0:00:24]} 60. fxg4 {[%emt 0:00:04]} fxg4 {[%emt 0:00:07]} 61. Kd3 {[%emt 0:00:05]} Kd5 {[%emt 0:00:26]} 0-1